[Event "FIDE Open World Rapid 2024"]
[Site "New York"]
[Date "2024.12.28"]
[Round "8.20"]
[White "Andersen, Mads"]
[Black "Schnaider, Ilan"]
[Result "1/2-1/2"]
[ECO "C70"]
[WhiteElo "2592"]
[BlackElo "2392"]
[Annotator "ChessBase"]
[PlyCount "137"]
[EventDate "2024.12.14"]
[EventType "swiss"]
[EventCountry "USA"]
[SourceTitle "playchess.com"]
[Source "ChessBase"]
[SourceQuality "1"]
[TimeControl "900+10"]

1. e4 {[%emt 0:00:03]} e5 {[%emt 0:01:33]} 2. Nf3 {[%emt 0:00:04]} Nc6 {[%emt 0:00:00]} 3. Bb5 {[%emt 0:00:03]} a6 {[%emt 0:00:01]} 4. Ba4 {[%emt 0:00:01]} Bc5 {[%emt 0:00:01]} 5. c3 {[%emt 0:00:55]} Nge7 {[%emt 0:00:03]} 6. d4 {[%emt 0:00:13]} exd4 {[%emt 0:00:01]} 7. cxd4 {[%emt 0:00:02]} Bb4+ {[%emt 0:00:01]} 8. Bd2 {[%emt 0:00:21]} Bxd2+ {[%emt 0:00:02]} 9. Qxd2 {[%emt 0:00:02]} d5 {[%emt 0:00:05]} 10. exd5 {[%emt 0:00:06]} Qxd5 {[%emt 0:00:03]} 11. Nc3 {[%emt 0:00:03]} Qe6+ {[%emt 0:00:03]} 12. Qe3 {[%emt 0:00:05]} O-O {[%emt 0:00:05]} 13. O-O {[%emt 0:00:21]} Qd6 {[%emt 0:00:03]} 14. Rad1 {[%emt 0:05:52]} Nb4 {[%emt 0:00:19]} 15. Rfe1 {[%emt 0:02:08]} Nbd5 {[%emt 0:02:23]} 16. Qg5 {[%emt 0:00:45]} Nxc3 {[%emt 0:02:50]} 17. bxc3 {[%emt 0:00:08]} Ng6 {[%emt 0:00:32]} 18. Bb3 {[%emt 0:00:28]} Be6 {[%emt 0:02:00]} 19. Bxe6 {[%emt 0:01:16]} fxe6 {[%emt 0:00:01]} 20. Qe3 {[%emt 0:00:50]} Rae8 {[%emt 0:00:33]} 21. Qe4 {[%emt 0:00:43]} Qd5 {[%emt 0:00:57]} 22. Rd2 {[%emt 0:00:32]} b5 {[%emt 0:00:40]} 23. Qxd5 {[%emt 0:00:54]} exd5 {[%emt 0:00:02]} 24. Rde2 {[%emt 0:00:03]} Rxe2 {[%emt 0:01:30]} 25. Rxe2 {[%emt 0:00:01]} h6 {[%emt 0:00:04]} 26. Re3 {[%emt 0:00:18]} Kf7 {[%emt 0:01:03]} 27. g3 {[%emt 0:00:23]} a5 {[%emt 0:02:09]} 28. h4 {[%emt 0:00:18]} Rd8 {[%emt 0:02:30]} 29. h5 {[%emt 0:00:57]} Nf8 {[%emt 0:00:01]} 30. Ne5+ {[%emt 0:00:10]} Kg8 {[%emt 0:00:01]} 31. Nd3 {[%emt 0:00:18]} Kf7 {[%emt 0:00:23]} 32. Kf1 {[%emt 0:00:50]} Re8 {[%emt 0:00:14]} 33. Ne5+ {[%emt 0:00:21]} Kg8 {[%emt 0:00:01]} 34. Nc6 {[%emt 0:00:16]} Rxe3 {[%emt 0:00:19]} 35. fxe3 {[%emt 0:00:01]} Kf7 {[%emt 0:00:02]} 36. Nxa5 {[%emt 0:00:12]} Nd7 {[%emt 0:00:06]} 37. Nc6 {[%emt 0:00:21]} Nf6 {[%emt 0:00:04]} 38. Na7 {[%emt 0:00:05]} Nxh5 {[%emt 0:00:32]} 39. Kg2 {[%emt 0:00:32]} Nf6 {[%emt 0:00:10]} 40. Nxb5 {[%emt 0:00:05]} Ne4 {[%emt 0:00:01]} 41. a4 {[%emt 0:00:17]} Ke7 {[%emt 0:00:20]} 42. a5 {[%emt 0:00:09]} Kd7 {[%emt 0:00:04]} 43. a6 {[%emt 0:00:04]} Kc6 {[%emt 0:00:12]} 44. a7 {[%emt 0:00:09]} Kb7 {[%emt 0:00:01]} 45. Nxc7 {[%emt 0:00:07]} Kxa7 {[%emt 0:00:02]} 46. Nxd5 {[%emt 0:00:02]} Kb7 {[%emt 0:00:10]} 47. Kf3 {[%emt 0:00:14]} Nd2+ {[%emt 0:00:22]} 48. Kf4 {[%emt 0:00:11]} Kc6 {[%emt 0:00:05]} 49. e4 {[%emt 0:00:20]} Kd6 {[%emt 0:00:12]} 50. Ke3 {[%emt 0:00:24]} Nf1+ {[%emt 0:00:04]} 51. Kf4 {[%emt 0:00:10]} Nd2 {[%emt 0:00:09]} 52. Nb4 {[%emt 0:00:12]} g6 {[%emt 0:00:30]} 53. e5+ {[%emt 0:00:06]} Ke7 {[%emt 0:00:04]} 54. d5 {[%emt 0:00:05]} Nc4 {[%emt 0:00:08]} 55. Nc6+ {[%emt 0:00:10]} Kd7 {[%emt 0:00:03]} 56. e6+ {[%emt 0:00:16]} Kc7 {[%emt 0:00:24]} 57. e7 {[%emt 0:00:10]} Nd6 {[%emt 0:00:02]} 58. c4 {[%emt 0:00:15]} g5+ {[%emt 0:00:08]} 59. Kg4 {[%emt 0:00:10]} Kd7 {[%emt 0:00:01]} 60. c5 {[%emt 0:00:17]} Ne4 {[%emt 0:00:00]} 61. d6 {[%emt 0:00:11]} Nxc5 {[%emt 0:00:01]} 62. Ne5+ {[%emt 0:00:04]} Ke8 {[%emt 0:00:01]} 63. Kf5 {[%emt 0:00:03]} h5 {[%emt 0:00:26]} 64. Nf3 {[%emt 0:00:19]} h4 {[%emt 0:00:28]} 65. gxh4 {[%emt 0:00:07]} gxh4 {[%emt 0:00:00]} 66. Nxh4 {[%emt 0:00:05]} Kd7 {[%emt 0:00:06]} 67. Ke5 {[%emt 0:00:13]} Nb7 {[%emt 0:00:23]} 68. Nf5 {[%emt 0:00:14]} Nxd6 {[%emt 0:00:01]} 69. Nxd6 {[%emt 0:00:09]} 1/2-1/2

[Event "FIDE Open World Rapid 2024"]
[Site "New York"]
[Date "2024.12.27"]
[Round "8.21"]
[White "Grigoryan, Karen H."]
[Black "Vakhidov, Jakhongir"]
[Result "1/2-1/2"]
[ECO "E60"]
[WhiteElo "2618"]
[BlackElo "2546"]
[Annotator "ChessBase"]
[PlyCount "145"]
[EventDate "2024.12.14"]
[EventType "swiss"]
[EventCountry "USA"]
[SourceTitle "playchess.com"]
[Source "ChessBase"]
[SourceQuality "1"]
[TimeControl "900+10"]

1. d4 {[%emt 0:01:04]} Nf6 {[%emt 0:00:28]} 2. c4 {[%emt 0:00:03]} g6 {[%emt 0:00:08]} 3. Nf3 {[%emt 0:00:04]} Bg7 {[%emt 0:00:02]} 4. g3 {[%emt 0:00:04]} c5 {[%emt 0:00:45]} 5. d5 {[%emt 0:00:04]} b5 {[%emt 0:00:05]} 6. cxb5 {[%emt 0:00:04]} a6 {[%emt 0:00:04]} 7. bxa6 {[%emt 0:00:15]} d6 {[%emt 0:00:04]} 8. Nc3 {[%emt 0:00:08]} Nxa6 {[%emt 0:00:10]} 9. Bg2 {[%emt 0:00:06]} O-O {[%emt 0:00:02]} 10. O-O {[%emt 0:00:03]} Bf5 {[%emt 0:00:01]} 11. Nd2 {[%emt 0:00:20]} Nb4 {[%emt 0:00:25]} 12. Nc4 {[%emt 0:00:31]} Bc2 {[%emt 0:00:52]} 13. Qd2 {[%emt 0:00:14]} Bb3 {[%emt 0:00:13]} 14. Na3 {[%emt 0:00:08]} Bxd5 {[%emt 0:00:27]} 15. Nxd5 {[%emt 0:00:04]} Nfxd5 {[%emt 0:00:47]} 16. Nc4 {[%emt 0:00:07]} e6 {[%emt 0:00:57]} 17. a3 {[%emt 0:00:09]} Qb8 {[%emt 0:05:49]} 18. Rd1 {[%emt 0:02:06]} Rd8 {[%emt 0:00:44]} 19. Rb1 {[%emt 0:01:03]} Qb5 {[%emt 0:04:54]} 20. Nxd6 {[%emt 0:03:41]} Rxd6 {[%emt 0:00:02]} 21. axb4 {[%emt 0:00:02]} Rad8 {[%emt 0:00:53]} 22. bxc5 {[%emt 0:00:04]} Qxc5 {[%emt 0:00:00]} 23. Qe1 {[%emt 0:00:03]} Qc2 {[%emt 0:00:22]} 24. Bg5 {[%emt 0:00:02]} Nc3 {[%emt 0:00:41]} 25. Rxd6 {[%emt 0:01:03]} Nxe2+ {[%emt 0:00:02]} 26. Kh1 {[%emt 0:00:23]} Rxd6 {[%emt 0:00:02]} 27. b4 {[%emt 0:00:06]} Bc3 {[%emt 0:00:09]} 28. Qf1 {[%emt 0:00:02]} Bd4 {[%emt 0:00:30]} 29. Rd1 {[%emt 0:01:15]} Bc5 {[%emt 0:00:03]} 30. Re1 {[%emt 0:00:15]} Bxb4 {[%emt 0:00:16]} 31. Rxe2 {[%emt 0:00:13]} Qa4 {[%emt 0:00:01]} 32. Bf6 {[%emt 0:05:25]} Rd1 {[%emt 0:00:02]} 33. Rb2 {[%emt 0:00:02]} h5 {[%emt 0:00:25]} 34. h4 {[%emt 0:00:03]} Kh7 {[%emt 0:00:10]} 35. Kh2 {[%emt 0:00:12]} Rxf1 {[%emt 0:00:01]} 36. Bxf1 {[%emt 0:00:01]} Qa1 {[%emt 0:00:10]} 37. Bg2 {[%emt 0:00:56]} Ba3 {[%emt 0:00:15]} 38. Rb3 {[%emt 0:00:06]} Qxf6 {[%emt 0:00:05]} 39. Rxa3 {[%emt 0:00:01]} Kg7 {[%emt 0:00:08]} 40. f4 {[%emt 0:00:07]} e5 {[%emt 0:00:07]} 41. fxe5 {[%emt 0:00:02]} Qxe5 {[%emt 0:00:01]} 42. Rf3 {[%emt 0:00:05]} f6 {[%emt 0:00:16]} 43. Rd3 {[%emt 0:00:01]} Qb2 {[%emt 0:00:14]} 44. Rd7+ {[%emt 0:00:04]} Kh6 {[%emt 0:00:06]} 45. Rd3 {[%emt 0:00:02]} Qb8 {[%emt 0:00:05]} 46. Rf3 {[%emt 0:00:03]} Kg7 {[%emt 0:00:17]} 47. Rd3 {[%emt 0:00:01]} g5 {[%emt 0:00:07]} 48. hxg5 {[%emt 0:00:02]} fxg5 {[%emt 0:00:01]} 49. Kg1 {[%emt 0:00:19]} Qb1+ {[%emt 0:00:10]} 50. Bf1 {[%emt 0:00:02]} Qe1 {[%emt 0:00:07]} 51. Kg2 {[%emt 0:00:10]} Kf6 {[%emt 0:00:09]} 52. Rf3+ {[%emt 0:00:02]} Ke5 {[%emt 0:00:10]} 53. Rf2 {[%emt 0:00:02]} Kd4 {[%emt 0:00:13]} 54. Re2 {[%emt 0:00:05]} Qc1 {[%emt 0:00:02]} 55. Kf2 {[%emt 0:00:06]} Qc7 {[%emt 0:00:33]} 56. Rd2+ {[%emt 0:00:06]} Kc3 {[%emt 0:00:04]} 57. Re2 {[%emt 0:00:20]} h4 {[%emt 0:00:28]} 58. gxh4 {[%emt 0:00:22]} Qh2+ {[%emt 0:00:06]} 59. Bg2 {[%emt 0:00:07]} Qf4+ {[%emt 0:00:15]} 60. Kg1 {[%emt 0:00:11]} gxh4 {[%emt 0:00:06]} 61. Bf1 {[%emt 0:00:16]} Qc1 {[%emt 0:00:17]} 62. Rh2 {[%emt 0:00:08]} Qe3+ {[%emt 0:00:02]} 63. Kh1 {[%emt 0:00:04]} Qe1 {[%emt 0:00:04]} 64. Rh3+ {[%emt 0:00:16]} Kd2 {[%emt 0:00:06]} 65. Rd3+ {[%emt 0:00:07]} Kc2 {[%emt 0:00:02]} 66. Rf3 {[%emt 0:00:12]} Qe5 {[%emt 0:00:16]} 67. Bg2 {[%emt 0:00:05]} Kd2 {[%emt 0:00:07]} 68. Kg1 {[%emt 0:00:04]} Qa1+ {[%emt 0:00:05]} 69. Kh2 {[%emt 0:00:01]} Ke2 {[%emt 0:00:03]} 70. Rh3 {[%emt 0:00:12]} Qg7 {[%emt 0:00:15]} 71. Rf3 {[%emt 0:00:10]} Qe5+ {[%emt 0:00:29]} 72. Kh1 {[%emt 0:00:10]} Qb8 {[%emt 0:00:11]} 73. Rh3 {[%emt 0:00:05]} 1/2-1/2

[Event "FIDE Open World Rapid 2024"]
[Site "New York"]
[Date "2024.12.28"]
[Round "8.21"]
[White "Benjamin, Joel"]
[Black "Ansat, Aldiyar"]
[Result "0-1"]
[ECO "B30"]
[WhiteElo "2473"]
[BlackElo "2479"]
[Annotator "ChessBase"]
[PlyCount "115"]
[EventDate "2024.12.14"]
[EventType "swiss"]
[EventCountry "USA"]
[SourceTitle "playchess.com"]
[Source "ChessBase"]
[SourceQuality "1"]
[TimeControl "900+10"]

1. e4 {[%emt 0:00:01]} c5 {[%emt 0:00:01]} 2. Nf3 {[%emt 0:00:03]} Nc6 {[%emt 0:00:02]} 3. Bb5 {[%emt 0:00:02]} e6 {[%emt 0:00:01]} 4. O-O {[%emt 0:00:03]} Nge7 {[%emt 0:00:02]} 5. Re1 {[%emt 0:00:02]} Nd4 {[%emt 0:00:01]} 6. Nxd4 {[%emt 0:00:04]} cxd4 {[%emt 0:00:01]} 7. c3 {[%emt 0:00:10]} a6 {[%emt 0:00:01]} 8. Bf1 {[%emt 0:00:05]} Nc6 {[%emt 0:00:01]} 9. b4 {[%emt 0:00:31]} Bd6 {[%emt 0:00:03]} 10. a4 {[%emt 0:03:55]} O-O {[%emt 0:00:10]} 11. Na3 {[%emt 0:01:20]} dxc3 {[%emt 0:01:53]} 12. dxc3 {[%emt 0:00:10]} Be5 {[%emt 0:00:01]} 13. Bd2 {[%emt 0:03:32]} Bb8 {[%emt 0:06:14]} 14. Qh5 {[%emt 0:02:18]} f5 {[%emt 0:02:26]} 15. Bg5 {[%emt 0:02:27]} Qc7 {[%emt 0:00:43]} 16. exf5 {[%emt 0:01:46]} Rxf5 {[%emt 0:00:03]} 17. Bd3 {[%emt 0:00:09]} Qxh2+ {[%emt 0:00:12]} 18. Qxh2 {[%emt 0:00:02]} Bxh2+ {[%emt 0:00:01]} 19. Kxh2 {[%emt 0:00:01]} Rxg5 {[%emt 0:00:02]} 20. Nc4 {[%emt 0:00:07]} Nd8 {[%emt 0:01:35]} 21. Nb6 {[%emt 0:00:35]} Rb8 {[%emt 0:00:00]} 22. Rad1 {[%emt 0:00:06]} Kf8 {[%emt 0:00:51]} 23. c4 {[%emt 0:00:48]} Ke7 {[%emt 0:01:30]} 24. Be4 {[%emt 0:00:25]} Nc6 {[%emt 0:00:42]} 25. b5 {[%emt 0:00:10]} Na5 {[%emt 0:00:01]} 26. f4 {[%emt 0:00:16]} Rc5 {[%emt 0:00:03]} 27. Rd4 {[%emt 0:00:09]} Nb3 {[%emt 0:00:39]} 28. Rd3 {[%emt 0:00:01]} Rh5+ {[%emt 0:00:01]} 29. Rh3 {[%emt 0:00:06]} Rxh3+ {[%emt 0:00:02]} 30. Kxh3 {[%emt 0:00:06]} Nc5 {[%emt 0:00:19]} 31. Bxh7 {[%emt 0:00:08]} a5 {[%emt 0:00:06]} 32. Re5 {[%emt 0:00:12]} d6 {[%emt 0:00:13]} 33. Rh5 {[%emt 0:00:16]} Bd7 {[%emt 0:01:04]} 34. Bc2 {[%emt 0:00:14]} Rg8 {[%emt 0:00:29]} 35. Nxd7 {[%emt 0:00:28]} Nxd7 {[%emt 0:00:09]} 36. Rg5 {[%emt 0:00:05]} Kf6 {[%emt 0:00:10]} 37. g4 {[%emt 0:00:15]} Rc8 {[%emt 0:00:01]} 38. Bb3 {[%emt 0:00:04]} Nb6 {[%emt 0:00:11]} 39. Rh5 {[%emt 0:00:08]} Nxc4 {[%emt 0:00:01]} 40. g5+ {[%emt 0:00:02]} Kf5 {[%emt 0:00:16]} 41. Rh7 {[%emt 0:00:17]} Nd2 {[%emt 0:00:15]} 42. Bd1 {[%emt 0:00:04]} Kg6 {[%emt 0:01:02]} 43. Rh4 {[%emt 0:00:13]} Rc1 {[%emt 0:00:02]} 44. Bh5+ {[%emt 0:00:15]} Kf5 {[%emt 0:00:03]} 45. Kg3 {[%emt 0:00:17]} Ne4+ {[%emt 0:00:08]} 46. Kg2 {[%emt 0:00:08]} Rc2+ {[%emt 0:00:17]} 47. Kf3 {[%emt 0:00:03]} Rc3+ {[%emt 0:00:03]} 48. Ke2 {[%emt 0:00:07]} d5 {[%emt 0:00:28]} 49. Bg4+ {[%emt 0:00:10]} Kxf4 {[%emt 0:00:02]} 50. Bxe6+ {[%emt 0:00:02]} Ke5 {[%emt 0:00:04]} 51. Bf7 {[%emt 0:00:22]} d4 {[%emt 0:00:04]} 52. Bg6 {[%emt 0:00:16]} Re3+ {[%emt 0:00:02]} 53. Kd1 {[%emt 0:00:04]} Nxg5 {[%emt 0:00:15]} 54. Rh8 {[%emt 0:00:08]} Nf3 {[%emt 0:00:23]} 55. Rd8 {[%emt 0:00:11]} b6 {[%emt 0:00:25]} 56. Rd7 {[%emt 0:00:08]} Kf6 {[%emt 0:00:06]} 57. Bh7 {[%emt 0:00:06]} g6 {[%emt 0:00:27]} 58. Rd6+ {[%emt 0:00:37]} 0-1

[Event "FIDE Open World Rapid 2024"]
[Site "New York"]
[Date "2024.12.27"]
[Round "8.22"]
[White "Bluebaum, Matthias"]
[Black "Svane, Frederik"]
[Result "1-0"]
[ECO "E51"]
[WhiteElo "2650"]
[BlackElo "2668"]
[Annotator "ChessBase"]
[PlyCount "67"]
[EventDate "2024.12.14"]
[EventType "swiss"]
[EventCountry "USA"]
[SourceTitle "playchess.com"]
[Source "ChessBase"]
[SourceQuality "1"]
[TimeControl "900+10"]

1. d4 {[%emt 0:00:01]} Nf6 {[%emt 0:00:01]} 2. c4 {[%emt 0:00:01]} e6 {[%emt 0:00:01]} 3. Nc3 {[%emt 0:00:01]} Bb4 {[%emt 0:00:09]} 4. e3 {[%emt 0:00:01]} d5 {[%emt 0:01:45]} 5. Bd2 {[%emt 0:00:03]} O-O {[%emt 0:02:49]} 6. Nf3 {[%emt 0:00:01]} Re8 {[%emt 0:01:21]} 7. Rc1 {[%emt 0:00:10]} h6 {[%emt 0:01:27]} 8. Bd3 {[%emt 0:00:31]} Nbd7 {[%emt 0:01:51]} 9. O-O {[%emt 0:01:16]} Bf8 {[%emt 0:00:57]} 10. e4 {[%emt 0:01:03]} dxe4 {[%emt 0:00:02]} 11. Nxe4 {[%emt 0:00:00]} Nxe4 {[%emt 0:00:03]} 12. Bxe4 {[%emt 0:00:01]} Nf6 {[%emt 0:00:01]} 13. Bb1 {[%emt 0:00:12]} b6 {[%emt 0:00:31]} 14. Bc3 {[%emt 0:00:22]} Bb7 {[%emt 0:00:04]} 15. Qe2 {[%emt 0:00:14]} c5 {[%emt 0:01:20]} 16. dxc5 {[%emt 0:00:02]} Bxc5 {[%emt 0:01:10]} 17. b4 {[%emt 0:00:26]} Bf8 {[%emt 0:00:31]} 18. Ne5 {[%emt 0:01:08]} Qe7 {[%emt 0:00:26]} 19. Rfe1 {[%emt 0:00:32]} Rac8 {[%emt 0:01:39]} 20. h3 {[%emt 0:01:04]} Ba8 {[%emt 0:00:52]} 21. Qc2 {[%emt 0:00:25]} g6 {[%emt 0:00:57]} 22. Qb2 {[%emt 0:00:01]} Nh5 {[%emt 0:00:27]} 23. Rcd1 {[%emt 0:04:17]} Red8 {[%emt 0:00:23]} 24. Rxd8 {[%emt 0:00:17]} Rxd8 {[%emt 0:00:00]} 25. Ng4 {[%emt 0:00:13]} Rc8 {[%emt 0:00:20]} 26. Bf6 {[%emt 0:01:31]} Qb7 {[%emt 0:00:11]} 27. Be4 {[%emt 0:00:19]} Qc7 {[%emt 0:00:01]} 28. Bxa8 {[%emt 0:01:02]} Rxa8 {[%emt 0:00:00]} 29. Rc1 {[%emt 0:00:01]} Rc8 {[%emt 0:00:11]} 30. Be5 {[%emt 0:00:55]} Qc6 {[%emt 0:00:22]} 31. Qd2 {[%emt 0:00:20]} Kh7 {[%emt 0:00:10]} 32. c5 {[%emt 0:00:28]} bxc5 {[%emt 0:00:09]} 33. bxc5 {[%emt 0:00:01]} Be7 {[%emt 0:00:18]} 34. Qxh6+ {[%emt 0:00:04]} 1-0

[Event "FIDE Open World Rapid 2024"]
[Site "New York"]
[Date "2024.12.27"]
[Round "8.22"]
[White "Amartuvshin, Ganzorig"]
[Black "Indjic, Aleksandar"]
[Result "1-0"]
[ECO "A70"]
[WhiteElo "2392"]
[BlackElo "2647"]
[Annotator "ChessBase"]
[PlyCount "101"]
[EventDate "2024.12.14"]
[EventType "swiss"]
[EventCountry "USA"]
[SourceTitle "playchess.com"]
[Source "ChessBase"]
[SourceQuality "1"]
[TimeControl "900+10"]

1. d4 {[%emt 0:00:01]} Nf6 {[%emt 0:00:02]} 2. c4 {[%emt 0:00:02]} e6 {[%emt 0:00:02]} 3. Nc3 {[%emt 0:00:05]} c5 {[%emt 0:00:01]} 4. d5 {[%emt 0:00:02]} exd5 {[%emt 0:00:02]} 5. cxd5 {[%emt 0:00:01]} d6 {[%emt 0:00:01]} 6. e4 {[%emt 0:00:03]} g6 {[%emt 0:00:01]} 7. Bd3 {[%emt 0:00:05]} Bg7 {[%emt 0:00:02]} 8. h3 {[%emt 0:00:04]} O-O {[%emt 0:00:05]} 9. Nf3 {[%emt 0:00:02]} Re8 {[%emt 0:00:02]} 10. O-O {[%emt 0:00:07]} Nbd7 {[%emt 0:00:01]} 11. Re1 {[%emt 0:00:12]} Ne5 {[%emt 0:00:01]} 12. Nxe5 {[%emt 0:00:10]} Rxe5 {[%emt 0:00:02]} 13. f4 {[%emt 0:00:33]} Re8 {[%emt 0:00:02]} 14. Be3 {[%emt 0:00:05]} c4 {[%emt 0:00:10]} 15. Bc2 {[%emt 0:00:05]} b5 {[%emt 0:00:09]} 16. Nxb5 {[%emt 0:01:06]} Nxe4 {[%emt 0:00:09]} 17. Bd4 {[%emt 0:00:16]} Nf6 {[%emt 0:00:17]} 18. Rxe8+ {[%emt 0:00:43]} Nxe8 {[%emt 0:00:02]} 19. Nxa7 {[%emt 0:01:03]} Bb7 {[%emt 0:00:57]} 20. Nc6 {[%emt 0:00:15]} Bxc6 {[%emt 0:00:24]} 21. dxc6 {[%emt 0:00:03]} d5 {[%emt 0:00:14]} 22. b3 {[%emt 0:01:32]} c3 {[%emt 0:00:53]} 23. Qd3 {[%emt 0:01:06]} Bxd4+ {[%emt 0:00:30]} 24. Qxd4 {[%emt 0:00:02]} Rc8 {[%emt 0:00:00]} 25. Qxc3 {[%emt 0:01:32]} Qb6+ {[%emt 0:00:01]} 26. Kh1 {[%emt 0:00:03]} Rxc6 {[%emt 0:00:01]} 27. Qd2 {[%emt 0:00:03]} Nf6 {[%emt 0:00:03]} 28. Re1 {[%emt 0:00:24]} Nh5 {[%emt 0:00:29]} 29. Bd1 {[%emt 0:00:56]} Nf6 {[%emt 0:01:14]} 30. Bf3 {[%emt 0:00:02]} Kg7 {[%emt 0:00:01]} 31. Rd1 {[%emt 0:00:45]} h6 {[%emt 0:01:48]} 32. Qb2 {[%emt 0:00:46]} Rd6 {[%emt 0:01:10]} 33. Rxd5 {[%emt 0:00:34]} Rxd5 {[%emt 0:00:02]} 34. Bxd5 {[%emt 0:00:01]} Qe3 {[%emt 0:00:01]} 35. f5 {[%emt 0:00:41]} gxf5 {[%emt 0:00:04]} 36. Bf3 {[%emt 0:00:24]} Kg6 {[%emt 0:00:00]} 37. Qe2 {[%emt 0:00:33]} Qd4 {[%emt 0:00:07]} 38. Qd1 {[%emt 0:00:34]} Qf4 {[%emt 0:00:32]} 39. a4 {[%emt 0:00:09]} h5 {[%emt 0:00:40]} 40. a5 {[%emt 0:01:21]} Ne4 {[%emt 0:00:40]} 41. Bxe4 {[%emt 0:00:39]} fxe4 {[%emt 0:00:01]} 42. a6 {[%emt 0:00:03]} Qf2 {[%emt 0:00:05]} 43. Qg1 {[%emt 0:00:30]} Qa2 {[%emt 0:00:02]} 44. Qb6+ {[%emt 0:00:03]} f6 {[%emt 0:00:01]} 45. a7 {[%emt 0:00:12]} Qa1+ {[%emt 0:00:22]} 46. Qg1 {[%emt 0:00:02]} Qa6 {[%emt 0:00:01]} 47. Qe3 {[%emt 0:00:07]} Kf5 {[%emt 0:01:15]} 48. b4 {[%emt 0:00:13]} Qa1+ {[%emt 0:00:22]} 49. Qg1 {[%emt 0:00:03]} Qa3 {[%emt 0:00:02]} 50. Qf2+ {[%emt 0:01:22]} Ke6 {[%emt 0:00:10]} 51. Qb6+ {[%emt 0:00:11]} 1-0

[Event "FIDE Open World Rapid 2024"]
[Site "New York"]
[Date "2024.12.27"]
[Round "8.23"]
[White "Muradli, Mahammad"]
[Black "Akobian, Varuzhan"]
[Result "1-0"]
[ECO "A13"]
[WhiteElo "2588"]
[BlackElo "2564"]
[Annotator "ChessBase"]
[PlyCount "87"]
[EventDate "2024.12.14"]
[EventType "swiss"]
[EventCountry "USA"]
[SourceTitle "playchess.com"]
[Source "ChessBase"]
[SourceQuality "1"]
[TimeControl "900+10"]

1. Nf3 {[%emt 0:00:04]} Nf6 {[%emt 0:00:18]} 2. c4 {[%emt 0:00:02]} e6 {[%emt 0:00:03]} 3. g3 {[%emt 0:00:02]} d5 {[%emt 0:00:01]} 4. Bg2 {[%emt 0:00:02]} dxc4 {[%emt 0:00:01]} 5. Qa4+ {[%emt 0:00:03]} Bd7 {[%emt 0:00:21]} 6. Qxc4 {[%emt 0:00:03]} c5 {[%emt 0:00:00]} 7. Nc3 {[%emt 0:00:12]} Bc6 {[%emt 0:00:16]} 8. O-O {[%emt 0:00:14]} Nbd7 {[%emt 0:00:03]} 9. e4 {[%emt 0:00:03]} a6 {[%emt 0:00:33]} 10. Qe2 {[%emt 0:00:24]} e5 {[%emt 0:09:37]} 11. d3 {[%emt 0:00:40]} Bd6 {[%emt 0:00:51]} 12. Nh4 {[%emt 0:01:20]} g6 {[%emt 0:00:10]} 13. f4 {[%emt 0:00:44]} Qe7 {[%emt 0:00:52]} 14. Be3 {[%emt 0:01:00]} h6 {[%emt 0:00:12]} 15. a4 {[%emt 0:01:21]} O-O-O {[%emt 0:00:33]} 16. f5 {[%emt 0:00:23]} g5 {[%emt 0:00:14]} 17. Nf3 {[%emt 0:00:01]} a5 {[%emt 0:00:36]} 18. Nd2 {[%emt 0:00:30]} Kc7 {[%emt 0:01:51]} 19. Nc4 {[%emt 0:00:13]} Ra8 {[%emt 0:00:03]} 20. h3 {[%emt 0:01:22]} b6 {[%emt 0:00:14]} 21. Qc2 {[%emt 0:00:15]} Kd8 {[%emt 0:01:09]} 22. Qb3 {[%emt 0:00:51]} Ke8 {[%emt 0:00:36]} 23. Nb5 {[%emt 0:00:45]} Bb8 {[%emt 0:00:14]} 24. Rac1 {[%emt 0:00:20]} Ra6 {[%emt 0:00:03]} 25. Bf3 {[%emt 0:01:37]} Kf8 {[%emt 0:00:06]} 26. Kg2 {[%emt 0:00:50]} Kg7 {[%emt 0:00:01]} 27. Rh1 {[%emt 0:00:04]} Rd8 {[%emt 0:00:25]} 28. Qc3 {[%emt 0:00:51]} Bxb5 {[%emt 0:00:06]} 29. axb5 {[%emt 0:00:02]} Ra7 {[%emt 0:00:11]} 30. g4 {[%emt 0:00:13]} Nh7 {[%emt 0:00:18]} 31. h4 {[%emt 0:00:25]} gxh4 {[%emt 0:00:08]} 32. Rh2 {[%emt 0:00:43]} Ng5 {[%emt 0:00:09]} 33. Rch1 {[%emt 0:00:01]} f6 {[%emt 0:00:09]} 34. Rxh4 {[%emt 0:00:03]} Rh8 {[%emt 0:00:01]} 35. R1h2 {[%emt 0:00:53]} Bc7 {[%emt 0:00:02]} 36. Qc1 {[%emt 0:00:05]} Raa8 {[%emt 0:00:27]} 37. Qh1 {[%emt 0:00:02]} Rag8 {[%emt 0:00:12]} 38. Bxg5 {[%emt 0:00:28]} fxg5 {[%emt 0:00:01]} 39. Rxh6 {[%emt 0:00:01]} Rxh6 {[%emt 0:00:05]} 40. Rxh6 {[%emt 0:00:02]} Nf6 {[%emt 0:00:18]} 41. Ne3 {[%emt 0:00:01]} Bd8 {[%emt 0:00:09]} 42. Nd5 {[%emt 0:00:22]} Qf8 {[%emt 0:00:19]} 43. Nxf6 {[%emt 0:00:05]} Bxf6 {[%emt 0:00:01]} 44. Rh7# {[%emt 0:00:01]} 1-0

[Event "FIDE Open World Rapid 2024"]
[Site "New York"]
[Date "2024.12.27"]
[Round "8.23"]
[White "Blohberger, Felix"]
[Black "Kevlishvili, Robby"]
[Result "1/2-1/2"]
[ECO "D04"]
[WhiteElo "2534"]
[BlackElo "2556"]
[Annotator "ChessBase"]
[PlyCount "84"]
[EventDate "2024.12.14"]
[EventType "swiss"]
[EventCountry "USA"]
[SourceTitle "playchess.com"]
[Source "ChessBase"]
[SourceQuality "1"]
[TimeControl "900+10"]

1. d4 {[%emt 0:00:02]} d5 {[%emt 0:00:06]} 2. Nf3 {[%emt 0:00:03]} Nf6 {[%emt 0:00:03]} 3. e3 {[%emt 0:00:11]} Bf5 {[%emt 0:00:22]} 4. Bd3 {[%emt 0:00:05]} e6 {[%emt 0:00:10]} 5. Bxf5 {[%emt 0:00:11]} exf5 {[%emt 0:00:02]} 6. Qd3 {[%emt 0:00:04]} Qc8 {[%emt 0:00:17]} 7. O-O {[%emt 0:00:24]} Bd6 {[%emt 0:00:08]} 8. b3 {[%emt 0:00:02]} O-O {[%emt 0:00:13]} 9. c4 {[%emt 0:00:23]} dxc4 {[%emt 0:00:59]} 10. bxc4 {[%emt 0:00:49]} Re8 {[%emt 0:01:09]} 11. Ba3 {[%emt 0:01:26]} Nc6 {[%emt 0:00:15]} 12. Nbd2 {[%emt 0:00:56]} Ne4 {[%emt 0:00:26]} 13. Rab1 {[%emt 0:00:56]} b6 {[%emt 0:00:53]} 14. Rfc1 {[%emt 0:01:38]} Qa6 {[%emt 0:00:18]} 15. Bxd6 {[%emt 0:00:10]} cxd6 {[%emt 0:00:03]} 16. Qb3 {[%emt 0:00:26]} Rac8 {[%emt 0:02:04]} 17. Nxe4 {[%emt 0:01:31]} fxe4 {[%emt 0:00:08]} 18. Nd2 {[%emt 0:00:05]} Qb7 {[%emt 0:02:27]} 19. Qa3 {[%emt 0:01:42]} Qe7 {[%emt 0:00:31]} 20. Rb5 {[%emt 0:00:24]} Na5 {[%emt 0:00:02]} 21. Qb4 {[%emt 0:01:24]} Rc6 {[%emt 0:00:01]} 22. Nb3 {[%emt 0:00:29]} Nxb3 {[%emt 0:00:31]} 23. axb3 {[%emt 0:00:08]} Rec8 {[%emt 0:01:08]} 24. Re5 {[%emt 0:00:41]} Qf8 {[%emt 0:00:40]} 25. Rd5 {[%emt 0:00:15]} g6 {[%emt 0:00:04]} 26. Ra1 {[%emt 0:00:10]} R8c7 {[%emt 0:00:14]} 27. h3 {[%emt 0:00:12]} Qe7 {[%emt 0:00:16]} 28. Ra6 {[%emt 0:00:19]} Kg7 {[%emt 0:00:01]} 29. Qa3 {[%emt 0:00:19]} h5 {[%emt 0:00:09]} 30. Rb5 {[%emt 0:00:34]} Qd7 {[%emt 0:00:23]} 31. d5 {[%emt 0:00:41]} Rc5 {[%emt 0:00:02]} 32. Qa1+ {[%emt 0:00:11]} Kh7 {[%emt 0:00:08]} 33. Rxc5 {[%emt 0:00:03]} dxc5 {[%emt 0:00:16]} 34. Qe5 {[%emt 0:01:05]} Qe7 {[%emt 0:00:11]} 35. Qxe7 {[%emt 0:01:06]} Rxe7 {[%emt 0:00:01]} 36. h4 {[%emt 0:00:06]} Rd7 {[%emt 0:01:53]} 37. Kh2 {[%emt 0:00:05]} g5 {[%emt 0:00:01]} 38. hxg5 {[%emt 0:00:26]} Kg6 {[%emt 0:00:02]} 39. b4 {[%emt 0:01:11]} cxb4 {[%emt 0:00:02]} 40. c5 {[%emt 0:00:01]} Rxd5 {[%emt 0:00:11]} 41. cxb6 {[%emt 0:00:07]} axb6 {[%emt 0:00:03]} 42. Rxb6+ {[%emt 0:00:03]} Kxg5 {[%emt 0:00:02]} 1/2-1/2